[Event "Israel-ch Women 2021"]
[Site "Haifa"]
[Date "2021.03.13"]
[Round "7.21"]
[White "Gadasi, Noam"]
[Black "Vardi, Shlomit"]
[Result "1-0"]
[ECO "E86"]
[WhiteElo "1781"]
[BlackElo "1901"]
[Annotator "ChessBase"]
[PlyCount "105"]
[EventDate "2021.01.10"]
[EventType "swiss"]
[EventCountry "ISR"]
[SourceTitle "playchess.com"]
[Source "ChessBase"]
[SourceQuality "1"]
[TimeControl "40/5400+30:3600+30"]

1. e4 {[%emt 0:00:00]} d6 {[%emt 0:00:00]} 2. d4 {[%emt 0:00:00]} g6 {[%emt 0:00:00]} 3. c4 {[%emt 0:00:10]} Bg7 {[%emt 0:00:04]} 4. Nc3 {[%emt 0:00:29]} Nf6 {[%emt 0:00:20]} 5. f3 {[%emt 0:00:34]} c6 {[%emt 0:07:20]} 6. Be3 {[%emt 0:03:04]} O-O {[%emt 0:02:15]} 7. Qd2 {[%emt 0:01:23]} e5 {[%emt 0:00:35]} 8. Nge2 {[%emt 0:02:02]} Re8 {[%emt 0:04:32]} 9. d5 {[%emt 0:01:27]} cxd5 {[%emt 0:06:08]} 10. Nxd5 {[%emt 0:03:12]} Nxd5 {[%emt 0:02:03]} 11. Qxd5 {[%emt 0:06:35]} Nc6 {[%emt 0:00:51]} 12. Qd2 {[%emt 0:07:12]} Be6 {[%emt 0:01:33]} 13. Nc3 {[%emt 0:04:27]} a6 {[%emt 0:08:51]} 14. O-O-O {[%emt 0:11:03]} Qa5 {[%emt 0:02:27]} 15. Kb1 {[%emt 0:03:20]} b5 {[%emt 0:30:36]} 16. Nd5 {[%emt 0:06:46]} Bxd5 {[%emt 0:01:35]} 17. Qxa5 {[%emt 0:00:39]} Nxa5 {[%emt 0:00:06]} 18. Rxd5 {[%emt 0:00:24]} Nxc4 {[%emt 0:02:50]} 19. Bxc4 {[%emt 0:00:51]} bxc4 {[%emt 0:00:05]} 20. Rxd6 {[%emt 0:00:09]} Reb8 {[%emt 0:04:08]} 21. Rc1 {[%emt 0:04:38]} Rc8 {[%emt 0:04:09]} 22. Kc2 {[%emt 0:11:35]} Bf8 {[%emt 0:04:27]} 23. Rd5 {[%emt 0:02:43]} f6 {[%emt 0:01:50]} 24. Rcd1 {[%emt 0:02:31]} a5 {[%emt 0:00:29]} 25. Bd2 {[%emt 0:10:27]} Bb4 {[%emt 0:06:51]} 26. a3 {[%emt 0:01:35]} Bxd2 {[%emt 0:00:48]} 27. R1xd2 {[%emt 0:00:24]} Kg7 {[%emt 0:02:00]} 28. Rd7+ {[%emt 0:00:35]} Kh6 {[%emt 0:00:10]} 29. Rf7 {[%emt 0:02:12]} Rc6 {[%emt 0:01:31]} 30. Rdd7 {[%emt 0:00:24]} Kg5 {[%emt 0:02:16]} 31. g3 {[%emt 0:04:00]} Rh8 {[%emt 0:00:57]} 32. Rc7 {[%emt 0:01:58]} Rxc7 {[%emt 0:01:07]} 33. Rxc7 {[%emt 0:00:02]} h5 {[%emt 0:00:13]} 34. h4+ {[%emt 0:02:25]} Kh6 {[%emt 0:00:05]} 35. Rxc4 {[%emt 0:00:47]} g5 {[%emt 0:00:27]} 36. Rc6 {[%emt 0:01:42]} Kg6 {[%emt 0:00:35]} 37. Rc5 {[%emt 0:02:07]} a4 {[%emt 0:00:22]} 38. Kc3 {[%emt 0:01:55]} Rb8 {[%emt 0:00:17]} 39. Kc2 {[%emt 0:01:40]} Rb3 {[%emt 0:00:11]} 40. Rc3 {[%emt 0:00:10]} Rb6 {[%emt 0:00:31]} 41. b4 {[%emt 0:34:13]} axb3+ {[%emt 0:30:50]} 42. Rxb3 {[%emt 0:00:08]} Rc6+ {[%emt 0:00:41]} 43. Rc3 {[%emt 0:03:29]} Ra6 {[%emt 0:00:49]} 44. Kb3 {[%emt 0:00:26]} f5 {[%emt 0:01:58]} 45. Rc5 {[%emt 0:04:42]} fxe4 {[%emt 0:03:05]} 46. fxe4 {[%emt 0:00:11]} gxh4 {[%emt 0:12:30]} 47. gxh4 {[%emt 0:00:23]} Kf6 {[%emt 0:00:36]} 48. a4 {[%emt 0:01:28]} Rd6 {[%emt 0:01:03]} 49. a5 {[%emt 0:01:25]} Ke6 {[%emt 0:00:10]} 50. Rc4 {[%emt 0:05:11]} Rd3+ {[%emt 0:03:40]} 51. Kb4 {[%emt 0:00:27]} Rd1 {[%emt 0:00:18]} 52. a6 {[%emt 0:03:10]} Rb1+ {[%emt 0:00:14]} 53. Ka5 {[%emt 0:01:11]} 1-0

[Event "Israel-ch Women 2021"]
[Site "Haifa"]
[Date "2021.03.13"]
[Round "7.22"]
[White "Aleksandrova, Aleksandra"]
[Black "Golovchanskaya, Alina"]
[Result "0-1"]
[ECO "A46"]
[WhiteElo "1769"]
[BlackElo "1681"]
[Annotator "NA"]
[PlyCount "120"]
[EventDate "2021.01.10"]
[EventType "swiss"]
[EventCountry "ISR"]
[SourceTitle "playchess.com"]
[Source "ChessBase"]
[SourceQuality "1"]
[TimeControl "40/5400+30:3600+30"]

1. d4 {[%emt 0:00:00]} Nf6 {[%emt 0:00:00]} 2. Nd2 {[%emt 0:00:00]} d6 {[%emt 0:00:00]} 3. e4 {[%emt 0:00:09]} Nbd7 {[%emt 0:00:00]} 4. Ngf3 {[%emt 0:00:35]} e5 {[%emt 0:00:04]} 5. c3 {[%emt 0:00:20]} Be7 {[%emt 0:00:10]} 6. Bd3 {[%emt 0:00:49]} O-O {[%emt 0:00:35]} 7. a4 {[%emt 0:00:16]} a5 {[%emt 0:00:24]} 8. Qc2 {[%emt 0:00:23]} c6 {[%emt 0:00:32]} 9. Nc4 {[%emt 0:03:44]} Qc7 {[%emt 0:01:52]} 10. Bg5 {[%emt 0:04:16]} Re8 {[%emt 0:01:33]} 11. Ne3 {[%emt 0:09:35]} h6 {[%emt 0:01:44]} 12. Bh4 {[%emt 0:00:24]} d5 {[%emt 0:06:51]} 13. O-O {[%emt 0:09:05]} exd4 {[%emt 0:03:02]} 14. cxd4 {[%emt 0:01:25]} dxe4 {[%emt 0:13:27]} 15. Bxe4 {[%emt 0:00:02]} Nxe4 {[%emt 0:02:07]} 16. Qxe4 {[%emt 0:00:23]} Nb6 {[%emt 0:02:09]} 17. Bg3 {[%emt 0:09:15]} Qd8 {[%emt 0:02:43]} 18. Qc2 {[%emt 0:02:07]} Bb4 {[%emt 0:05:37]} 19. Rad1 {[%emt 0:02:08]} Nd5 {[%emt 0:00:12]} 20. Ne5 {[%emt 0:01:05]} Nxe3 {[%emt 0:06:58]} 21. fxe3 {[%emt 0:00:03]} f6 {[%emt 0:00:19]} 22. Qg6 {[%emt 0:18:40]} fxe5 {[%emt 0:04:28]} 23. Rf7 {[%emt 0:07:07]} Bf8 {[%emt 0:00:18]} 24. Rdf1 {[%emt 0:00:19]} Be6 {[%emt 0:05:42]} 25. R7f6 {[%emt 0:24:48]} Qd7 {[%emt 0:04:47]} 26. Bxe5 {[%emt 0:00:03]} Bc4 {[%emt 0:03:34]} 27. Rc1 {[%emt 0:02:13]} Bf7 {[%emt 0:02:15]} 28. Qg3 {[%emt 0:00:33]} Re6 {[%emt 0:00:15]} 29. Rcf1 {[%emt 0:00:35]} Rxf6 {[%emt 0:04:08]} 30. Rxf6 {[%emt 0:00:03]} Kh7 {[%emt 0:02:57]} 31. Rf1 {[%emt 0:01:42]} Bg6 {[%emt 0:03:12]} 32. h4 {[%emt 0:03:53]} h5 {[%emt 0:24:05]} 33. Rf4 {[%emt 0:00:00]} Bd6 {[%emt 0:00:00]} 34. Qf2 {[%emt 0:01:00]} Bxe5 {[%emt 0:00:00]} 35. dxe5 {[%emt 0:00:30]} Re8 {[%emt 0:01:30]} 36. Rd4 {[%emt 0:00:30]} Qf5 {[%emt 0:00:30]} 37. Qxf5 {[%emt 0:00:00]} Bxf5 {[%emt 0:00:00]} 38. e4 {[%emt 0:00:00]} Bg4 {[%emt 0:00:00]} 39. b4 {[%emt 0:00:34]} Rxe5 {[%emt 0:00:00]} 40. bxa5 {[%emt 0:00:10]} Rxa5 {[%emt 0:00:00]} 41. Rb4 {[%emt 1:00:02]} b5 {[%emt 1:02:30]} 42. axb5 {[%emt 0:00:47]} Rxb5 {[%emt 0:00:00]} 43. Rc4 {[%emt 0:00:13]} c5 {[%emt 0:00:00]} 44. Kf2 {[%emt 0:00:27]} Be6 {[%emt 0:00:00]} 45. Rc2 {[%emt 0:01:16]} c4 {[%emt 0:00:00]} 46. Ke3 {[%emt 0:00:12]} Kg6 {[%emt 0:00:00]} 47. Kd4 {[%emt 0:00:00]} Kf7 {[%emt 0:00:00]} 48. Rf2+ {[%emt 0:00:00]} Ke7 {[%emt 0:00:00]} 49. Ra2 {[%emt 0:00:00]} Rb3 {[%emt 0:00:00]} 50. Ke5 {[%emt 0:00:00]} Rb5+ {[%emt 0:00:00]} 51. Kd4 {[%emt 0:00:00]} Rb7 {[%emt 0:00:00]} 52. Ra5 {[%emt 0:04:19]} g6 {[%emt 0:00:00]} 53. Ke5 {[%emt 0:00:30]} Rc7 {[%emt 0:06:00]} 54. Ra1 {[%emt 0:00:00]} c3 {[%emt 0:00:30]} 55. Kf4 {[%emt 0:00:00]} c2 {[%emt 0:00:00]} 56. Rc1 {[%emt 0:00:00]} Bb3 {[%emt 0:00:00]} 57. Kg5 {[%emt 0:00:00]} Kf7 {[%emt 0:00:00]} 58. Rf1+ {[%emt 0:00:00]} Kg7 {[%emt 0:00:00]} 59. Rc1 {[%emt 0:00:00]} Rd7 {[%emt 0:00:00]} 60. e5 {[%emt 0:00:00]} Rd1 {[%emt 0:03:00]} 0-1

[Event "Israel-ch Women 2021"]
[Site "Haifa"]
[Date "2021.03.13"]
[Round "7.23"]
[White "Shaul Seidner, Liad"]
[Black "Kochavi, Dana"]
[Result "0-1"]
[ECO "B12"]
[WhiteElo "1687"]
[BlackElo "1572"]
[Annotator "NA"]
[PlyCount "70"]
[EventDate "2021.01.10"]
[EventType "swiss"]
[EventCountry "ISR"]
[SourceTitle "playchess.com"]
[Source "ChessBase"]
[SourceQuality "1"]
[TimeControl "40/5400+30:3600+30"]

1. e4 {[%emt 0:00:00]} c6 {[%emt 0:00:00]} 2. Nf3 {[%emt 0:00:00]} d5 {[%emt 0:00:00]} 3. e5 {[%emt 0:00:00]} Bf5 {[%emt 0:00:00]} 4. d4 {[%emt 0:00:05]} e6 {[%emt 0:00:07]} 5. Bd3 {[%emt 0:00:15]} Bxd3 {[%emt 0:00:07]} 6. cxd3 {[%emt 0:00:09]} Ne7 {[%emt 0:02:42]} 7. O-O {[%emt 0:00:37]} Nf5 {[%emt 0:01:04]} 8. Nc3 {[%emt 0:00:54]} Be7 {[%emt 0:00:22]} 9. Ne2 {[%emt 0:01:13]} h5 {[%emt 0:12:58]} 10. Nd2 {[%emt 0:22:45]} Qb6 {[%emt 0:02:29]} 11. Qb3 {[%emt 0:03:15]} Nd7 {[%emt 0:05:20]} 12. Qxb6 {[%emt 0:01:58]} axb6 {[%emt 0:00:21]} 13. Nf3 {[%emt 0:12:41]} h4 {[%emt 0:11:15]} 14. g4 {[%emt 0:02:48]} hxg3 {[%emt 0:01:09]} 15. hxg3 {[%emt 0:01:07]} c5 {[%emt 0:06:50]} 16. Bd2 {[%emt 0:03:21]} cxd4 {[%emt 0:03:40]} 17. b4 {[%emt 0:01:27]} Ra3 {[%emt 0:09:42]} 18. Rfc1 {[%emt 0:19:18]} Bd8 {[%emt 0:02:28]} 19. Kg2 {[%emt 0:14:44]} Rxd3 {[%emt 0:01:25]} 20. Nf4 {[%emt 0:01:17]} Ra3 {[%emt 0:00:36]} 21. Rh1 {[%emt 0:01:24]} Rxh1 {[%emt 0:01:08]} 22. Rxh1 {[%emt 0:00:43]} Rxa2 {[%emt 0:01:56]} 23. Rh8+ {[%emt 0:01:11]} Ke7 {[%emt 0:02:49]} 24. Ng6+ {[%emt 0:05:17]} fxg6 {[%emt 0:00:13]} 25. Bg5+ {[%emt 0:00:32]} Nf6 {[%emt 0:00:56]} 26. g4 {[%emt 0:01:11]} Ne3+ {[%emt 0:00:11]} 27. Kg3 {[%emt 0:01:28]} Nexg4 {[%emt 0:03:58]} 28. exf6+ {[%emt 0:00:40]} Nxf6 {[%emt 0:00:03]} 29. Ne5 {[%emt 0:01:14]} Bc7 {[%emt 0:01:53]} 30. f4 {[%emt 0:01:25]} Kd6 {[%emt 0:01:18]} 31. Kf3 {[%emt 0:01:36]} Ra3+ {[%emt 0:01:12]} 32. Ke2 {[%emt 0:00:36]} Re3+ {[%emt 0:00:09]} 33. Kd1 {[%emt 0:00:36]} Ne4 {[%emt 0:01:46]} 34. Nxg6 {[%emt 0:00:41]} Nxg5 {[%emt 0:00:12]} 35. fxg5 {[%emt 0:00:13]} Rg3 {[%emt 0:00:31]} 0-1

[Event "Israel-ch Women 2021"]
[Site "Haifa"]
[Date "2021.03.14"]
[Round "8.17"]
[White "Gadasi, Noam"]
[Black "Shvayger, Yuliya"]
[Result "0-1"]
[ECO "E06"]
[WhiteElo "1781"]
[BlackElo "2327"]
[Annotator "ChessBase"]
[PlyCount "44"]
[EventDate "2021.01.10"]
[EventType "swiss"]
[EventCountry "ISR"]
[SourceTitle "playchess.com"]
[Source "ChessBase"]
[SourceQuality "1"]
[TimeControl "40/5400+30:3600+30"]

1. d4 {[%emt 0:00:00]} Nf6 {[%emt 0:00:00]} 2. c4 {[%emt 0:00:01]} e6 {[%emt 0:00:07]} 3. g3 {[%emt 0:00:21]} d5 {[%emt 0:00:09]} 4. Bg2 {[%emt 0:00:39]} Be7 {[%emt 0:00:07]} 5. Nf3 {[%emt 0:00:17]} O-O {[%emt 0:00:19]} 6. Qc2 {[%emt 0:00:50]} c5 {[%emt 0:01:10]} 7. dxc5 {[%emt 0:01:23]} d4 {[%emt 0:01:41]} 8. O-O {[%emt 0:03:46]} Nc6 {[%emt 0:00:36]} 9. Rd1 {[%emt 0:04:45]} e5 {[%emt 0:02:19]} 10. Nbd2 {[%emt 0:10:52]} a5 {[%emt 0:13:46]} 11. a3 {[%emt 0:04:59]} Bxc5 {[%emt 0:02:46]} 12. Ng5 {[%emt 0:10:27]} Be7 {[%emt 0:09:33]} 13. Nge4 {[%emt 0:13:24]} Ne8 {[%emt 0:05:48]} 14. Nf3 {[%emt 0:11:42]} f5 {[%emt 0:11:30]} 15. Nc3 {[%emt 0:02:50]} e4 {[%emt 0:00:19]} 16. Ne1 {[%emt 0:00:48]} Bc5 {[%emt 0:10:38]} 17. g4 {[%emt 0:09:24]} Qh4 {[%emt 0:02:43]} 18. Na4 {[%emt 0:04:54]} Bd6 {[%emt 0:02:07]} 19. g5 {[%emt 0:02:58]} Bxh2+ {[%emt 0:01:31]} 20. Kf1 {[%emt 0:01:06]} Nc7 {[%emt 0:00:56]} 21. c5 {[%emt 0:02:27]} Be6 {[%emt 0:00:30]} 22. Nb6 {[%emt 0:03:33]} Rad8 {[%emt 0:00:10]} 0-1

[Event "Israel-ch Women 2021"]
[Site "Haifa"]
[Date "2021.03.14"]
[Round "8.18"]
[White "Lian, Marina"]
[Black "Federovski, Adi"]
[Result "0-1"]
[ECO "B23"]
[WhiteElo "1870"]
[BlackElo "1995"]
[Annotator "NA"]
[PlyCount "68"]
[EventDate "2021.01.10"]
[EventType "swiss"]
[EventCountry "ISR"]
[SourceTitle "playchess.com"]
[Source "ChessBase"]
[SourceQuality "1"]
[TimeControl "40/5400+30:3600+30"]

1. e4 {[%emt 0:00:00]} c5 {[%emt 0:00:00]} 2. Nc3 {[%emt 0:00:00]} d6 {[%emt 0:00:21]} 3. f4 {[%emt 0:00:00]} g6 {[%emt 0:00:37]} 4. Nf3 {[%emt 0:00:12]} Bg7 {[%emt 0:00:27]} 5. Bc4 {[%emt 0:00:39]} Nc6 {[%emt 0:06:36]} 6. O-O {[%emt 0:00:35]} e6 {[%emt 0:00:07]} 7. d4 {[%emt 0:02:13] outshines the older 7.d3.} cxd4 {[%emt 0:00:51]} 8. Nb5 {[%emt 0:00:51]} Nge7 {[%emt 0:02:34]} 9. Bb3 {[%emt 0:02:16]} O-O {[%emt 0:03:34]} 10. Nbxd4 {[%emt 0:00:49]} Nxd4 {[%emt 0:07:27]} 11. Nxd4 {[%emt 0:00:18] [#]} Bd7 $146 {[%emt 0:03:50]} ({Predecessor:} 11... e5 12. Nf3 Nc6 13. Kh1 Be6 14. c3 Qe7 15. fxe5 dxe5 16. Bg5 f6 17. Be3 Rad8 {1-0 (45) Grischuk,A (2777)-Wei,Y (2732) Chess.com INT 2020}) 12. Be3 {[%emt 0:11:48]} a6 {[%emt 0:16:46]} 13. c3 {[%emt 0:04:51]} Nc6 {[%emt 0:04:23]} 14. f5 {[%emt 0:14:08]} exf5 {[%emt 0:03:39]} 15. exf5 {[%emt 0:14:10]} Be5 {[%emt 0:09:21]} 16. fxg6 {[%emt 0:04:32]} hxg6 {[%emt 0:00:18]} 17. Nf3 {[%emt 0:04:48]} Qe7 {[%emt 0:12:58]} 18. Bg5 {[%emt 0:07:41]} Bf6 {[%emt 0:01:49]} 19. Bxf6 {[%emt 0:00:24]} Qxf6 {[%emt 0:00:12]} 20. Qd2 {[%emt 0:01:06]} Bf5 {[%emt 0:07:47]} 21. Qh6 {[%emt 0:08:04]} Qg7 {[%emt 0:02:38]} 22. Qf4 {[%emt 0:02:35]} Ne5 {[%emt 0:01:32]} 23. Nd4 $16 {[%emt 0:01:37]} Bd3 {[%emt 0:03:09]} 24. Rf2 {[%emt 0:01:29]} b5 {[%emt 0:02:00]} 25. Re1 {[%emt 0:04:07]} Bc4 {[%emt 0:03:32]} 26. Bc2 {[%emt 0:02:19]} Bd3 {[%emt 0:01:23]} 27. Bb3 {[%emt 0:04:45]} Bc4 {[%emt 0:00:05]} 28. Bxc4 {[%emt 0:00:35]} bxc4 {[%emt 0:00:30]} 29. Nf5 {[%emt 0:03:46]} gxf5 {[%emt 0:01:33]} 30. Qxf5 {[%emt 0:00:16]} Qg6 {[%emt 0:01:32]} 31. Qh3 {[%emt 0:01:17]} f5 {[%emt 0:01:20]} 32. Rf4 {[%emt 0:00:59]} Nd3 {[%emt 0:01:23]} 33. Rh4 {[%emt 0:01:12]} Nxe1 {[%emt 0:00:26]} 34. Rh6 {[%emt 0:00:15]} Qxg2+ {[%emt 0:00:26]} 0-1

[Event "Israel-ch Women 2021"]
[Site "Haifa"]
[Date "2021.03.14"]
[Round "8.19"]
[White "Katkov, Michelle"]
[Black "Golovchanskaya, Alina"]
[Result "1/2-1/2"]
[ECO "C41"]
[WhiteElo "2078"]
[BlackElo "1681"]
[Annotator "NA"]
[PlyCount "135"]
[EventDate "2021.01.10"]
[EventType "swiss"]
[EventCountry "ISR"]
[SourceTitle "playchess.com"]
[Source "ChessBase"]
[SourceQuality "1"]
[TimeControl "40/5400+30:3600+30"]

1. e4 {[%emt 0:00:00]} d6 {[%emt 0:00:00]} 2. d4 {[%emt 0:00:00]} Nf6 {[%emt 0:00:05]} 3. Nc3 {[%emt 0:00:00]} e5 {[%emt 0:00:10]} 4. Nf3 {[%emt 0:00:15]} Nbd7 {[%emt 0:00:09]} 5. Bc4 {[%emt 1:32:15]} Be7 {[%emt 0:00:07]} 6. O-O {[%emt 0:00:00]} O-O {[%emt 0:00:04]} 7. Re1 {[%emt 0:00:00]} c6 {[%emt 0:00:14]} 8. a4 {[%emt 0:00:00]} a5 {[%emt 0:00:17] 8...h6 is setting a new trend.} 9. h3 {[%emt 0:00:00]} Qc7 {[%emt 0:01:50]} 10. Bb3 {[%emt 0:00:00]} h6 {[%emt 0:06:04]} 11. Be3 {[%emt 0:00:00]} Re8 {[%emt 0:03:25]} 12. Nh4 {[%emt 0:00:00]} exd4 {[%emt 0:14:48] [#]} 13. Bxd4 $146 {[%emt 0:00:00]} ({Predecessor:} 13. Qxd4 Nc5 14. Ba2 Be6 15. Bxe6 Nxe6 16. Qc4 Ng4 17. Nf5 d5 18. exd5 Qh2+ 19. Kf1 Nxe3+ 20. fxe3 cxd5 21. Nxe7+ Rxe7 22. Nxd5 {1-0 (53) Plotkin,V (2406)-Chernik,D (2118) Aurora 2015}) 13... Nc5 {[%emt 0:00:22]} 14. e5 {[%emt 0:00:00]} dxe5 {[%emt 0:04:48]} 15. Bxe5 {[%emt 0:00:00]} Qd8 {[%emt 0:01:54]} 16. Bxf6 {[%emt 0:00:00]} Qxd1 $1 {[%emt 0:06:57]} 17. Raxd1 {[%emt 0:00:00]} gxf6 {[%emt 0:00:21]} 18. Ng6 {[%emt 0:00:00]} Be6 {[%emt 0:02:43]} 19. Bxe6 {[%emt 0:00:00]} fxe6 {[%emt 0:05:09]} 20. Ne4 {[%emt 0:00:00]} Nxe4 {[%emt 0:00:48]} 21. Rxe4 {[%emt 0:00:00]} Kf7 {[%emt 0:02:45]} 22. Nxe7 {[%emt 0:00:00]} Rxe7 {[%emt 0:00:39]} 23. Rh4 $14 {[%emt 0:00:00]} Kg6 {[%emt 0:01:47]} 24. Rd6 {[%emt 0:00:00]} f5 {[%emt 0:00:57]} 25. Rhd4 {[%emt 0:00:00]} Rae8 {[%emt 0:00:56]} 26. Kf1 {[%emt 0:00:00]} h5 {[%emt 0:01:51]} 27. h4 {[%emt 0:00:00]} Kf6 {[%emt 0:01:06]} 28. Rd3 {[%emt 0:00:00]} Ke5 {[%emt 0:06:43]} 29. c4 {[%emt 0:00:00]} Rg8 {[%emt 0:01:41]} 30. g3 {[%emt 0:00:00]} Rg4 {[%emt 0:00:57]} 31. f4+ {[%emt 0:00:00]} Kf6 {[%emt 0:00:36]} 32. c5 {[%emt 0:00:49]} Rgg7 {[%emt 0:00:21]} 33. Rd8 {[%emt 0:03:01]} e5 {[%emt 0:10:44]} 34. R3d6+ {[%emt 0:03:15]} Kf7 {[%emt 0:01:10]} 35. fxe5 {[%emt 0:00:57]} Rxe5 {[%emt 0:00:10]} 36. R8d7+ {[%emt 0:01:23]} Re7 {[%emt 0:00:18]} 37. Kf2 {[%emt 0:01:30]} Rg4 {[%emt 0:03:37]} 38. Rxe7+ {[%emt 0:03:12]} Kxe7 {[%emt 0:00:08]} 39. Rh6 {[%emt 0:00:04]} f4 {[%emt 0:02:26]} 40. gxf4 {[%emt 0:00:28]} Rxf4+ {[%emt 0:03:46]} 41. Kg3 {[%emt 1:00:13]} Rg4+ {[%emt 1:00:03]} 42. Kh3 {[%emt 0:00:07]} Rxa4 {[%emt 0:00:38]} 43. Rxh5 {[%emt 0:03:16]} Rb4 {[%emt 0:04:19]} 44. Re5+ {[%emt 0:00:00]} Kf6 {[%emt 0:00:00]} 45. Re2 {[%emt 0:00:00]} Rc4 {[%emt 0:00:00]} 46. Rf2+ {[%emt 0:00:00]} Kg6 {[%emt 0:00:00]} 47. Rg2+ {[%emt 0:00:00]} Kh6 {[%emt 0:00:00]} 48. Rg5 {[%emt 0:00:00]} Rc2 {[%emt 0:00:00]} 49. b3 {[%emt 0:00:00]} Rc3+ {[%emt 0:00:00]} 50. Kg4 {[%emt 0:00:00]} Rxb3 {[%emt 0:00:00]} 51. Rh5+ {[%emt 0:00:00]} Kg6 {[%emt 0:00:00]} 52. Rg5+ {[%emt 0:00:00]} Kf6 {[%emt 0:00:00]} 53. Rf5+ {[%emt 0:00:00]} Ke6 {[%emt 0:00:00]} 54. Rf8 {[%emt 0:00:00]} a4 {[%emt 0:00:00]} 55. h5 {[%emt 0:00:00]} Ke7 {[%emt 0:00:00]} 56. Ra8 {[%emt 0:00:00]} Kf6 {[%emt 0:00:00]} 57. Rxa4 {[%emt 0:00:00]} Rc3 {[%emt 0:00:00]} 58. Rf4+ {[%emt 0:00:00]} Kg7 {[%emt 0:00:00]} 59. Rf5 {[%emt 0:00:00]} Kh6 {[%emt 0:00:00]} 60. Kf4 {[%emt 0:00:00]} Rc4+ {[%emt 0:00:00]} 61. Ke3 {[%emt 0:00:00]} Rb4 {[%emt 0:00:00]} 62. Kd3 {[%emt 0:00:00]} b6 {[%emt 0:00:39]} 63. cxb6 {[%emt 0:00:00]} Rxb6 {[%emt 0:00:03]} 64. Kc4 {[%emt 0:00:00]} Rb1 {[%emt 0:00:38]} 65. Rf6+ {[%emt 0:00:00]} Kxh5 {[%emt 0:00:05]} 66. Rxc6 {[%emt 0:00:00]} Rc1+ {[%emt 0:00:05]} 67. Kd5 {[%emt 0:00:00]} Rxc6 {[%emt 0:00:02]} 68. Kxc6 {[%emt 0:00:00]} 1/2-1/2

[Event "Israel-ch Women 2021"]
[Site "Haifa"]
[Date "2021.03.14"]
[Round "8.20"]
[White "Reprun, Nadejda"]
[Black "Haitovich, Avital"]
[Result "1-0"]
[ECO "C41"]
[WhiteElo "1968"]
[BlackElo "1981"]
[Annotator "NA"]
[PlyCount "75"]
[EventDate "2021.01.10"]
[EventType "swiss"]
[EventCountry "ISR"]
[SourceTitle "playchess.com"]
[Source "ChessBase"]
[SourceQuality "1"]
[TimeControl "40/5400+30:3600+30"]

1. e4 {[%emt 1:30:30]} e5 {[%emt 0:00:00]} 2. Nf3 {[%emt 0:00:00]} d6 {[%emt 0:00:00]} 3. d4 {[%emt 0:00:00]} exd4 {[%emt 0:00:00]} 4. Nxd4 {[%emt 0:00:00]} Nf6 {[%emt 0:00:02]} 5. Nc3 {[%emt 0:00:00]} Be7 {[%emt 0:00:08]} 6. Be2 {[%emt 0:00:00]} O-O {[%emt 0:00:12]} 7. Bf4 {[%emt 0:00:00]} c6 {[%emt 0:04:43]} 8. Qd3 {[%emt 0:00:00]} b5 {[%emt 0:11:20]} 9. Bf3 {[%emt 0:00:00]} (9. a3 $14) 9... a6 {[%emt 0:32:48]} (9... b4 $11 {remains equal.}) 10. a3 {[%emt 0:00:00]} Ra7 {[%emt 0:05:18]} 11. O-O {[%emt 0:00:00]} Qb6 {[%emt 0:11:24]} 12. Rad1 {[%emt 0:00:00]} Rd8 {[%emt 0:05:10]} 13. Qe3 {[%emt 0:00:00]} a5 {[%emt 0:17:33] [#]} (13... c5 $16) 14. Nxc6 $1 {[%emt 0:06:30]} Qxe3 {[%emt 0:01:27]} 15. Nxe7+ {[%emt 0:00:00]} Rxe7 $18 {[%emt 0:00:06]} 16. Bxe3 {[%emt 0:00:00]} b4 {[%emt 0:00:58]} 17. Nd5 {[%emt 0:00:00]} Nxd5 {[%emt 0:00:09]} 18. Rxd5 {[%emt 0:00:00]} bxa3 {[%emt 0:00:13]} 19. bxa3 {[%emt 0:00:00]} Bb7 {[%emt 0:00:41]} 20. Rd2 {[%emt 0:00:00]} Bxe4 {[%emt 0:00:43]} 21. Bxe4 {[%emt 0:00:00]} Rxe4 {[%emt 0:00:02]} 22. Rfd1 {[%emt 0:00:00]} Re6 {[%emt 0:04:38]} 23. h3 {[%emt 0:00:00]} Nc6 {[%emt 0:02:25]} 24. Bc5 {[%emt 0:00:00]} Ne5 {[%emt 0:00:49]} 25. Rxd6 {[%emt 0:00:00]} Rexd6 {[%emt 0:00:08]} 26. Rxd6 {[%emt 0:00:00]} Rc8 {[%emt 0:01:02]} 27. Rd5 {[%emt 0:00:00]} f6 {[%emt 0:00:01]} 28. Bd4 {[%emt 0:00:00]} Nc4 {[%emt 0:00:53]} 29. a4 {[%emt 0:00:00]} Kf7 {[%emt 0:00:29]} 30. Rd7+ {[%emt 0:00:00]} Kf8 {[%emt 0:00:01]} 31. Rb7 {[%emt 0:00:00]} Nd6 {[%emt 0:01:24]} 32. Ra7 {[%emt 0:00:00]} Nc4 {[%emt 0:00:34]} 33. c3 {[%emt 0:00:00]} Rd8 {[%emt 0:00:38]} 34. Kf1 {[%emt 0:00:00]} Rd5 {[%emt 0:00:00]} 35. Rb7 {[%emt 0:00:00]} Na3 {[%emt 0:00:41]} 36. Ke2 {[%emt 0:00:00]} Kg8 {[%emt 0:00:48]} 37. Kd3 {[%emt 0:00:00]} Rd8 {[%emt 0:00:28]} 38. Rb3 {[%emt 0:00:14]} 1-0